[Event "Mitropa Cup Open 2022"]
[Site "Corte"]
[Date "2022.05.06"]
[Round "7.2"]
[White "Sonis, Francesco"]
[Black "Kusa, Jakub"]
[Result "1-0"]
[ECO "D35"]
[WhiteElo "2547"]
[BlackElo "2338"]
[Annotator "TA"]
[PlyCount "54"]
[EventDate "2022.04.30"]
[EventType "team-tourn"]
[EventCountry "FRA"]
[SourceTitle "playchess.com"]
[Source "ChessBase"]
[SourceQuality "1"]
[WhiteTeam "Italy"]
[BlackTeam "Czech Republic"]
[WhiteTeamCountry "ITA"]
[BlackTeamCountry "CZE"]
[TimeControl "40/5400+30:1800+30"]

{[%evp 14,54,26,23,29,9,25,17,23,21,57,44,44,33,85,78,87,62,89,18,81,77,178,179,159,139,136,126,133,154,283,283,540,540,450,245,176,0,377,333,356,356,388]} 1. c4 {[%emt 0:00:01]} e6 {[%emt 0:00:20]} 2. d4 {[%emt 0:00:07]} Nf6 {[%emt 0:00:13]} 3. Nc3 {[%emt 0:00:04]} d5 {[%emt 0:00:16]} 4. cxd5 {[%emt 0:00:05]} exd5 {[%emt 0:00:07]} 5. Bg5 {[%emt 0:00:03]} Nbd7 {[%emt 0:00:31][%cal Bb8d7,Bd7f8,Bf8g6,Bg6e7][%mdl 32]} 6. e3 {[%emt 0:00:04]} c6 {[%emt 0:00:12]} 7. Bd3 {[%emt 0:00:02]} Bd6 {[%emt 0:01:27]} 8. Nge2 {[%emt 0:02:12]} Nf8 {[%emt 0:00:49] is more profitable than 8...0-0 at the moment. D35: Queen's Gambit Declined: Exchange Variation.} 9. Bf4 {[%emt 0:01:18]} Ng6 {[%emt 0:03:17]} 10. Bg3 {[%emt 0:01:32]} Bxg3 {[%emt 0:05:07] [#] The position is equal.} 11. hxg3 $146 {[%emt 0:03:54][%cal Bh2g3,Bg3g4,Bg4h5][%mdl 32]} ({Predecessor:} 11. Nxg3 a5 12. O-O O-O 13. Qd2 Nh4 14. f3 Re8 15. Qf2 b6 16. e4 dxe4 17. fxe4 {½-½ (24) Nosenko,A (2498)-Dmitrenko,V (2338) Alushta 2009}) 11... Ne7 {[%emt 0:02:48]} 12. Qc2 {[%emt 0:00:50]} g6 {[%emt 0:01:32]} 13. f3 {[%emt 0:06:32]} Be6 {[%emt 0:12:45]} (13... Bf5 $14) 14. g4 $16 {[%emt 0:00:33]} h5 {[%emt 0:03:21]} 15. Nf4 {[%emt 0:04:30]} Qd6 {[%emt 0:08:44] [#]} 16. Qa4 {[%emt 0:10:40]} ({Better is} 16. gxh5 $1 $16 g5 17. Nxe6 Qxe6 18. Kf2) 16... a6 {[%emt 0:03:45]} (16... Kd7 $11 {keeps the balance.}) 17. Qa5 {[%emt 0:07:34] White is more active.} g5 {[%emt 0:12:23]} (17... Kf8 $16) 18. Nxh5 $18 {[%emt 0:03:26]} Nxh5 {[%emt 0:01:37]} 19. gxh5 {[%emt 0:05:26]} (19. Rxh5 Qg3+ 20. Kf1 Rxh5 21. gxh5 g4 $11) 19... Qg3+ {[%emt 0:03:13]} 20. Kd2 {[%emt 0:00:16]} Qf2+ {[%emt 0:01:26]} 21. Ne2 {[%emt 0:00:52] [#] aiming for Qc7.} Qxg2 {[%emt 0:05:01]} (21... Kd7 $16) 22. Qc7 {[%emt 0:06:21] Threatens to win with Rag1.} Qxf3 $2 {[%emt 0:02:56]} (22... Rh6 {was called for.} 23. Qxb7 Rc8) 23. Raf1 {[%emt 0:00:07]} Qg2 {[%emt 0:02:36]} 24. Rfg1 {[%emt 0:00:05]} (24. Qxb7 Rd8 25. h6 (25. Qxa6 Rh6 $16) 25... Bh3 $18) (24. Rhg1 Qh3 25. Rh1 (25. Qxb7 Rd8 $16) 25... Qg2 $18) (24. h6 $142) 24... Qf3 {[%emt 0:00:37]} 25. Rf1 $2 {[%emt 0:00:18]} (25. Qxb7 Rc8 26. Rf1 (26. Qxa6 Rxh5 27. Rxh5 Qxh5 $11)) 25... Qg2 {[%emt 0:00:29]} 26. Qxb7 {[%emt 0:00:05] Really sharp!} ({Resist} 26. Rhg1 Qh3 27. Rh1 (27. Qxb7 Rd8 $18) 27... Qg2 $18) 26... Rc8 27. h6 {[%emt 0:05:51]} ({Not} 27. Qxa6 Rb8 $16) (27. Bxa6 Bh3 28. Rfg1 Qf3 $18) 27... Kf8 {[%emt 0:06:29] Weighted Error Value: White=0.31/Black=0.43} 1-0

[Event "Mitropa Cup Open 2022"]
[Site "Corte"]
[Date "2022.05.06"]
[Round "7.3"]
[White "Nemeth, Miklos"]
[Black "Gaehwiler, Gabriel"]
[Result "0-1"]
[ECO "B53"]
[WhiteElo "2446"]
[BlackElo "2418"]
[Annotator "TA"]
[PlyCount "70"]
[EventDate "2022.04.30"]
[EventType "team-tourn"]
[EventCountry "FRA"]
[SourceTitle "playchess.com"]
[Source "ChessBase"]
[SourceQuality "1"]
[WhiteTeam "Hungary"]
[BlackTeam "Switzerland"]
[WhiteTeamCountry "HUN"]
[BlackTeamCountry "SUI"]
[TimeControl "40/5400+30:1800+30"]

{[%evp 9,70,0,22,7,10,8,0,0,8,0,14,0,6,11,34,15,16,-33,-32,-72,-18,-37,-48,-76,-78,-80,-87,-80,-72,-93,-89,-85,-81,-93,-89,-116,-116,-203,-210,-208,-209,-211,-208,-208,-204,-238,-183,-212,-211,-200,-188,-374,-354,-398,-398,-398,-395,-395,-395,-394,-387,-379,-371]} 1. e4 {[%emt 0:00:05]} c5 {[%emt 0:05:31]} 2. Nf3 {[%emt 0:00:04]} d6 {[%emt 0:00:15]} 3. d4 {[%emt 0:00:03]} cxd4 {[%emt 0:00:11]} 4. Qxd4 {[%emt 0:00:03]} Nc6 {[%emt 0:00:15]} 5. Qe3 {[%emt 0:00:38]} g6 {[%emt 0:00:17]} 6. Be2 {[%emt 0:00:17] B53: Sicilian: 2...d6: Lines with Qxd4.} Bg7 {[%emt 0:00:18]} 7. O-O {[%emt 0:00:27]} Nf6 {[%emt 0:00:08]} 8. h3 {[%emt 0:01:35] The position is equal.} O-O {[%emt 0:00:13]} 9. Rd1 {[%emt 0:00:17]} Nd7 {[%emt 0:07:15]} 10. Nc3 {[%emt 0:00:16]} a6 {[%emt 0:09:41]} 11. a4 {[%emt 0:01:48]} b6 {[%emt 0:07:03] [#]} 12. Nd5 $146 {[%emt 0:03:48]} ({Predecessor:} 12. Qf4 Nb4 13. Qh4 Nxc2 14. Rb1 Ne5 15. Nxe5 Bxe5 16. Nd5 Re8 17. Bd3 Nd4 18. Be3 {½-½ (61) Harikrishna,P (2725)-Korobov,A (2685) Struga 2021}) 12... Bb7 {[%emt 0:07:16]} 13. Ra3 {[%emt 0:05:09]} (13. Qa3 $11) 13... e6 $15 {[%emt 0:09:29]} 14. Nf4 {[%emt 0:06:55]} Nc5 {[%emt 0:02:39] Against Rad3} ({Better is} 14... Qc7 $17) 15. Nd3 {[%emt 0:13:18]} Qc7 {[%emt 0:02:47]} 16. b4 {[%emt 0:18:35] [#]} Nxe4 {[%emt 0:14:02]} 17. Qxe4 {[%emt 0:03:11] [#] Qh4 is the strong threat.} Nd4 $1 {[%emt 0:01:30]} 18. Qe3 {[%emt 0:00:12]} Nxc2 {[%emt 0:00:13]} 19. Qd2 {[%emt 0:00:57] Black must now prevent Ra2.} Nxa3 {[%emt 0:00:05] Black is more active.} 20. Bxa3 {[%emt 0:00:07]} Qc3 {[%emt 0:03:39]} 21. Qxc3 {[%emt 0:05:22]} Bxc3 {[%emt 0:00:18]} 22. Rc1 {[%emt 0:00:56]} Rfc8 {[%emt 0:00:36]} 23. Nc5 {[%emt 0:03:24]} dxc5 $19 {[%emt 0:11:16]} ({Not} 23... Bxb4 24. Bxb4 bxc5 25. Bc3) 24. Rxc3 {[%emt 0:00:11][%cal Rb4c5]} cxb4 {[%emt 0:00:16]} 25. Bxb4 {[%emt 0:00:13] [#]} a5 $1 {[%emt 0:02:09]} 26. Rxc8+ {[%emt 0:02:55]} Rxc8 {[%emt 0:00:03]} 27. Be7 {[%emt 0:01:59]} Bc6 {[%emt 0:05:24]} 28. Bd1 {[%emt 0:02:51]} Bxf3 {[%emt 0:03:30]} 29. Bxf3 {[%emt 0:00:07]} Rc4 {[%emt 0:00:05]} 30. Bd8 $2 {[%emt 0:00:12]} (30. Kf1) 30... Rxa4 {[%emt 0:00:11] Black is winning.} 31. Bxb6 {[%emt 0:00:04]} Ra1+ {[%emt 0:00:08]} 32. Kh2 {[%emt 0:00:03]} a4 {[%emt 0:00:05]} 33. Bd4 {[%emt 0:01:48]} Rc1 {[%emt 0:02:49]} 34. Be3 {[%emt 0:00:26]} Rc8 {[%emt 0:00:40]} 35. Bb7 {[%emt 0:01:33]} Rc7 {[%emt 0:00:23] Weighted Error Value: White=0.25 (precise) /Black=0.06 (flawless)} 0-1

[Event "Mitropa Cup Open 2022"]
[Site "Corte"]
[Date "2022.05.06"]
[Round "7.3"]
[White "Mica, Marek"]
[Black "Lodici, Lorenzo"]
[Result "1/2-1/2"]
[ECO "A05"]
[WhiteElo "2343"]
[BlackElo "2549"]
[Annotator "TA"]
[PlyCount "104"]
[EventDate "2022.04.30"]
[EventType "team-tourn"]
[EventCountry "FRA"]
[SourceTitle "playchess.com"]
[Source "ChessBase"]
[SourceQuality "1"]
[WhiteTeam "Czech Republic"]
[BlackTeam "Italy"]
[WhiteTeamCountry "CZE"]
[BlackTeamCountry "ITA"]
[TimeControl "40/5400+30:1800+30"]

{[%evp 11,104,0,4,6,37,37,33,29,29,36,31,30,36,14,14,16,27,24,52,41,29,20,21,23,20,0,0,0,0,0,0,0,0,0,0,0,0,0,0,0,0,0,0,0,0,0,0,0,0,0,0,0,0,0,0,0,0,0,0,0,0,0,0,0,0,0,0,0,0,0,0,0,0,0,8,8,8,0,0,0,0,0,0,0,0,0,0,0,0,0,0,0,0,0,0]} 1. Nf3 {[%emt 0:00:04]} Nf6 {[%emt 0:01:55]} 2. g3 {[%emt 0:00:35]} d5 {[%emt 0:02:07]} 3. Bg2 {[%emt 0:00:35]} c6 {[%emt 0:00:04]} 4. O-O {[%emt 0:00:28]} Bf5 {[%emt 0:00:04]} 5. c4 {[%emt 0:04:19]} e6 {[%emt 0:00:06]} 6. Qb3 {[%emt 0:00:23]} Qb6 {[%emt 0:01:08]} 7. d3 {[%emt 0:00:10] A11: English Opening: 1...c6.} Bc5 {[%emt 0:02:51] Prevents Be3.} 8. Nc3 {[%emt 0:10:03]} Nbd7 {[%emt 0:00:14]} 9. Nh4 {[#] White is slightly better.} Bg4 $146 {[%emt 0:02:00][%cal Bf5g4,Bg4h5,Bh5g6][%mdl 32]} ({Predecessor:} 9... Bg6 10. Nxg6 hxg6 11. Qxb6 axb6 12. cxd5 exd5 13. Bd2 b5 14. e3 Ne5 15. d4 Nc4 16. dxc5 Nxd2 17. Rfd1 {½-½ (17) Smyslov,V (2600)-Nikolic,P (2575) Ljubljana 1985}) 10. h3 {[%emt 0:06:49] [#] Hoping for Qxb6.} Bh5 {[%emt 0:00:03]} 11. g4 {[%emt 0:03:13][%cal Rc4d5]} Bg6 {[%emt 0:00:05]} 12. Na4 {[%emt 0:02:35]} Qxb3 {[%emt 0:04:03]} 13. axb3 {[%emt 0:00:11]} Be7 {[%emt 0:01:27]} 14. f4 {[%emt 0:07:10]} Ng8 {[%emt 0:00:46]} 15. Nxg6 {[%emt 0:01:04]} hxg6 {[%emt 0:00:02]} 16. Be3 {[%emt 0:01:31] Against Nc5} Ngf6 {[%emt 0:04:51][%cal Bg8f6,Bf6d7,Bd7e5][%mdl 32]} 17. Bd4 {[%emt 0:11:46]} Bd6 {[%emt 0:17:22]} 18. e4 {[%emt 0:09:38] The position is equal.} dxe4 {[%emt 0:00:17]} 19. dxe4 {[%emt 0:00:28] [#] aiming for e5.} e5 $1 {[%emt 0:00:33]} 20. Nb6 {[%emt 0:06:50]} Rd8 {[%emt 0:08:14]} (20... exd4 21. Nxa8 d3 22. Rf3 $14) ({Don't take} 20... Nxb6 21. fxe5 c5 22. Bc3 Nxg4 23. exd6 $16) 21. Nxd7 {[%emt 0:01:43]} Nxd7 {[%emt 0:00:42]} 22. fxe5 {[%emt 0:02:59]} ({But not} 22. Bxa7 exf4 23. Bf2 g5 $15) 22... Bxe5 {[%emt 0:00:06]} 23. Bxe5 {[%emt 0:01:49]} Nxe5 {[%emt 0:00:01]} 24. Rxa7 {[%emt 0:00:08]} Rd7 {[%emt 0:03:14]} 25. Ra8+ {[%emt 0:00:36]} Rd8 {[%emt 0:00:01]} 26. Ra7 {[%emt 0:00:20]} Rb8 {[%emt 0:00:01]} 27. Rd1 {[%emt 0:02:59]} Ke7 {[%emt 0:00:45]} 28. Kf2 {[%emt 0:01:38]} Rhd8 {[%emt 0:02:13]} 29. Rxd8 {[%emt 0:00:32]} Kxd8 $11 {[%emt 0:00:01][%mdl 4096] Endgame KRB-KRN} 30. Bf1 {[%emt 0:00:35]} Kc7 {[%emt 0:05:13]} 31. c5 {[%emt 0:01:02]} Rd8 {[%emt 0:00:07]} 32. Ke3 {[%emt 0:02:51] Prevents Rd2.} Kb8 {[%emt 0:00:59]} 33. Ra1 {[%emt 0:01:05]} g5 {[%emt 0:00:08]} 34. b4 {[%emt 0:03:50]} Rh8 {[%emt 0:00:04]} 35. Ra5 {[%emt 0:05:38]} Rd8 {[%emt 0:13:22]} 36. Be2 {[%emt 0:01:21]} Rh8 {[%emt 0:13:55]} 37. Bf1 {[%emt 0:00:07]} Rd8 {[%emt 0:02:07]} 38. Be2 {[%emt 0:00:13]} f6 {[%emt 0:00:03]} 39. b5 {[%emt 0:00:39]} cxb5 {[%emt 0:00:05]} 40. Rxb5 {[%emt 0:06:55]} Kc7 41. Ra5 {[%emt 0:30:09]} Rh8 {[%emt 0:30:36]} 42. Bf1 Rxh3+ {[%emt 0:00:23]} 43. Bxh3 {[%emt 0:00:38]} Nc4+ {[%emt 0:00:02]} 44. Kd4 {[%emt 0:00:26]} Nxa5 {[%emt 0:00:02] KB-KN} 45. Kd5 {[%emt 0:01:06]} Nc6 {[%emt 0:00:16] Against e5} 46. Bf1 {[%emt 0:00:00]} Ne5 {[%emt 0:00:00]} 47. Be2 {[%emt 0:00:00]} Ng6 {[%emt 0:00:00] Strongly threatening ...Nf4+.} 48. Bd1 {[%emt 0:00:00]} Nf4+ {[%emt 0:00:00]} 49. Kd4 {[%emt 0:00:00]} Ne6+ {[%emt 0:00:00]} 50. Kd5 {[%emt 0:00:00]} Nf4+ {[%emt 0:00:00]} 51. Kd4 {[%emt 0:00:00]} Ne6+ {[%emt 0:00:00]} 52. Kd5 {[%emt 0:00:00]} Nf4+ {[%emt 0:00:00] Weighted Error Value: White=0.01 (flawless) /Black=0.02 (flawless)} 1/2-1/2

[Event "Mitropa Cup Open 2022"]
[Site "Corte"]
[Date "2022.05.06"]
[Round "7.4"]
[White "Gallagher, Joseph G."]
[Black "Csiki, Endre"]
[Result "1-0"]
[ECO "B53"]
[WhiteElo "2441"]
[BlackElo "2399"]
[Annotator "TA"]
[PlyCount "69"]
[EventDate "2022.04.30"]
[EventType "team-tourn"]
[EventCountry "FRA"]
[SourceTitle "playchess.com"]
[Source "ChessBase"]
[SourceQuality "1"]
[WhiteTeam "Switzerland"]
[BlackTeam "Hungary"]
[WhiteTeamCountry "SUI"]
[BlackTeamCountry "HUN"]
[TimeControl "40/5400+30:1800+30"]

{[%evp 11,69,16,16,3,18,13,15,11,17,16,6,27,23,20,15,26,32,33,52,16,56,28,42,41,47,51,90,83,78,43,38,13,25,12,17,10,15,14,185,172,170,192,162,179,668,667,583,566,1300,1198,1202,0,960,927,5306,5306,5306,5306,1791,1273]} 1. e4 {[%emt 0:00:04]} c5 {[%emt 0:00:04]} 2. Nf3 {[%emt 0:00:07]} d6 {[%emt 0:00:03]} 3. d4 {[%emt 0:00:44]} cxd4 {[%emt 0:00:05]} 4. Qxd4 {[%emt 0:00:05]} Nc6 {[%emt 0:00:04]} 5. Bb5 {[%emt 0:00:18]} Bd7 {[%emt 0:00:04]} 6. Qd3 {[%emt 0:00:16]} Nf6 {[%emt 0:01:14] 6...g6 is more fashionable.} 7. c4 {[%emt 0:00:14] B53: Sicilian: 2...d6: Lines with Qxd4.} g6 {[%emt 0:00:23]} 8. Nc3 {[%emt 0:00:07]} Bg7 {[%emt 0:00:04]} 9. O-O {[%emt 0:00:08] The position is equal.} O-O {[%emt 0:00:04]} 10. h3 {[%emt 0:00:05]} a6 {[%emt 0:00:07]} 11. Bxc6 {[%emt 0:00:57]} Bxc6 {[%emt 0:00:06]} 12. Nd4 {[%emt 0:01:26] Inhibits b5.} Nd7 {[%emt 0:06:23]} 13. Be3 {[%emt 0:02:55]} Nc5 {[%emt 0:06:41]} 14. Qc2 {[%emt 0:00:07]} Bd7 {[%emt 0:00:37][%cal Ob7b5]} 15. Rac1 {[%emt 0:20:36]} Rc8 {[%emt 0:03:11]} 16. Qd2 {[%emt 0:14:36] [#]} f5 $146 {[%emt 0:15:26]} ({Predecessor:} 16... Qe8 17. Nde2 b5 18. b4 Ne6 19. cxb5 Bxb5 20. Nd5 Rb8 21. Rfe1 Rb7 22. Nd4 Nxd4 23. Bxd4 Bxd4 24. Qxd4 {1-0 (55) Zvjaginsev,V (2683)-Frolyanov,D (2564) Tiumen 2012}) 17. exf5 {[%emt 0:04:58]} gxf5 {[%emt 0:00:07][%cal Of5f4]} 18. b4 {[%emt 0:13:09]} Ne4 {[%emt 0:04:54]} 19. Nxe4 {[%emt 0:00:45]} fxe4 {[%emt 0:00:04]} 20. Bh6 {[%emt 0:10:11]} e5 {[%emt 0:04:05]} 21. Ne2 {[%emt 0:02:12][%cal Bd4e2,Be2g3,Bg3e4,Be4d6][%mdl 32] aiming for Bxg7.} Be6 {[%emt 0:17:35]} 22. Bg5 {[%emt 0:16:46]} Qd7 {[%emt 0:01:33]} 23. Ng3 {[%emt 0:01:30]} Bxc4 {[%emt 0:18:06]} 24. Rfe1 {[%emt 0:00:37]} h6 $2 {[%emt 0:05:47]} (24... d5 $11) 25. Bxh6 $18 {[%emt 0:01:46]} Bxh6 {[%emt 0:00:10]} 26. Qxh6 {[%emt 0:00:02]} d5 {[%emt 0:01:36] [#]} 27. Nxe4 $1 {[%emt 0:02:53] Chess con chili.} Qf5 $2 {[%emt 0:01:56]} (27... Rc6 28. Qg5+ Qg7) 28. Nd6 $1 {[%emt 0:02:30][%csl LRb7,LRc8,LRf5]} Qxf2+ {[%emt 0:00:13]} 29. Kh1 {[%emt 0:00:01]} e4 {[%emt 0:03:14]} 30. Qg6+ {[%emt 0:00:04]} Kh8 {[%emt 0:00:05]} 31. Qh6+ $40 {[%emt 0:00:03][%mdl 128] White mounts an attack.} Kg8 {[%emt 0:00:06]} 32. Nxc8 {[%emt 0:00:15] White threatens Ne7+ and mate. White is clearly winning.} Rf6 {[%emt 0:00:58]} 33. Ne7+ {[%emt 0:01:54]} Kf7 {[%emt 0:00:06]} 34. Qh7+ {[%emt 0:00:15]} Ke6 {[%emt 0:00:14] [#]} 35. Rxe4+ $1 {[%emt 0:00:44] Weighted Error Value: White=0.22 (precise) /Black=0.46} 1-0

[Event "Mitropa Cup Open 2022"]
[Site "Corte"]
[Date "2022.05.06"]
[Round "7.4"]
[White "Di Benedetto, Edoardo"]
[Black "Frank, Adam"]
[Result "1/2-1/2"]
[ECO "E62"]
[WhiteElo "2401"]
[BlackElo "2284"]
[Annotator "TA"]
[PlyCount "95"]
[EventDate "2022.04.30"]
[EventType "team-tourn"]
[EventCountry "FRA"]
[SourceTitle "playchess.com"]
[Source "ChessBase"]
[SourceQuality "1"]
[WhiteTeam "Italy"]
[BlackTeam "Czech Republic"]
[WhiteTeamCountry "ITA"]
[BlackTeamCountry "CZE"]
[TimeControl "40/5400+30:1800+30"]

{[%evp 19,95,28,51,25,22,34,25,39,31,40,29,30,36,27,26,25,28,24,22,22,24,11,20,14,112,21,18,0,0,0,27,18,40,0,0,0,0,0,0,0,0,0,0,0,0,0,0,0,0,0,0,0,0,0,0,0,0,0,0,0,0,0,0,0,0,0,0,0,0,0,0,0,0,0,0,0,0,0]} 1. d4 {[%emt 0:00:05]} Nf6 {[%emt 0:00:05]} 2. c4 {[%emt 0:00:04]} g6 {[%emt 0:00:03]} 3. g3 {[%emt 0:00:06]} Bg7 {[%emt 0:00:03]} 4. Bg2 {[%emt 0:00:05]} d6 {[%emt 0:00:05]} 5. Nf3 {[%emt 0:00:05]} O-O {[%emt 0:00:05]} 6. O-O {[%emt 0:00:05]} Nc6 {[%emt 0:00:03]} 7. Nc3 {[%emt 0:00:54]} Bf5 {[%emt 0:00:06]} 8. Nh4 {[%emt 0:14:46]} Bd7 {[%emt 0:00:06]} 9. b3 {[%emt 0:00:41] 9.f4 is the modern continuation.} a6 {[%emt 0:07:40] is the legacy move (9...a5).} 10. Bb2 {[%emt 0:04:36]} Rb8 {[%emt 0:00:27]} 11. d5 {[%emt 0:06:20] E63: King's Indian: Fianchetto: Panno Variation with 7...a6.} Na5 {[%emt 0:02:13] [#]} 12. Ne4 $146 {[%emt 0:00:33]} ({Predecessor:} 12. Qd2 c5 13. dxc6 bxc6 14. e4 c5 15. Rfe1 Nc6 16. Nd5 e5 17. Nxf6+ Qxf6 18. f4 Nd4 {1-0 (37) Smirnov,V (2261)-Mochalov,E (2374) Minsk 2018}) 12... Nxe4 {[%emt 0:15:34]} 13. Bxg7 {[%emt 0:00:09] White has an edge.} Kxg7 {[%emt 0:00:03]} 14. Bxe4 {[%emt 0:00:12]} c5 {[%emt 0:00:11]} 15. f4 {[%emt 0:09:25]} b5 {[%emt 0:05:59]} 16. Bd3 {[%emt 0:01:44]} (16. Qd2 {keeps more tension.} Bh3 17. Rfb1 f6 18. Qd3) 16... bxc4 {[%emt 0:04:48]} 17. bxc4 {[%emt 0:00:06]} e6 {[%emt 0:02:23]} 18. dxe6 {[%emt 0:06:49]} Bxe6 {[%emt 0:00:12]} 19. Qd2 {[%emt 0:42:31] [#] Black must now prevent f5.} f5 $1 {[%emt 0:07:30]} (19... Nxc4 $2 20. Bxc4 Bxc4 21. Qc3+ Kg8 22. Qxc4 $18) 20. Qc3+ {[%emt 0:00:09]} Kg8 {[%emt 0:06:31]} 21. Rab1 {[%emt 0:00:09] Against Rb4} Qc7 {[%emt 0:10:55] [#]} (21... Rb4 $11 {keeps the balance.}) 22. Nf3 {[%emt 0:01:35]} (22. Rxb8 $1 $16 Rxb8 23. g4) 22... Nc6 $11 {[%emt 0:03:58]} 23. Ng5 {[%emt 0:01:31]} Qe7 {[%emt 0:00:43]} 24. a3 {[%emt 0:01:24]} h6 {[%emt 0:00:41]} 25. Nf3 {[%emt 0:00:05]} Qg7 {[%emt 0:00:35]} (25... Bf7 {is more complex.} 26. Kg2 Qe3 27. Rfd1 Rfe8) 26. Qxg7+ {[%emt 0:01:02]} Kxg7 {[%emt 0:01:01] The position is equal.} 27. Kf2 {[%emt 0:00:16]} Kf6 {[%emt 0:06:05]} 28. Nd2 {[%emt 0:00:32]} Na5 {[%emt 0:09:19]} 29. e4 {[%emt 0:03:04]} Nc6 {[%emt 0:00:35]} 30. Rfe1 {[%emt 0:01:20]} Nd4 {[%emt 0:03:12]} 31. Ke3 {[%emt 0:01:25]} Bd7 {[%emt 0:01:10]} 32. Rxb8 {[%emt 0:00:18]} Rxb8 {[%emt 0:00:04]} 33. Rb1 {[%emt 0:00:04]} Rxb1 {[%emt 0:00:05]} 34. Nxb1 {[%emt 0:00:48]} fxe4 {[%emt 0:07:01]} 35. Bxe4 {[%emt 0:00:15][%mdl 4096] Endgame KBN-KBN} Bf5 {[%emt 0:00:55]} 36. Nc3 {[%emt 0:01:11]} Nc2+ {[%emt 0:05:44]} 37. Kd3 {[%emt 0:02:03]} Nxa3 {[%emt 0:01:01]} 38. Nd5+ {[%emt 0:00:23]} Ke6 $1 {[%emt 0:00:15] Hoping for ...Bxe4+.} 39. Bxf5+ {[%emt 0:00:13]} gxf5 {[%emt 0:00:14] KN-KN} 40. Ne3 {[%emt 0:01:25]} h5 {[%emt 0:00:50]} 41. Kc3 {[%emt 0:31:59]} Nb1+ {[%emt 0:31:44]} 42. Kc2 {[%emt 0:00:12]} Na3+ {[%emt 0:00:02]} 43. Kb3 {[%emt 0:00:00]} Nb5 {[%emt 0:00:00]} 44. cxb5 {[%emt 0:00:00]} axb5 {[%emt 0:00:00]} 45. Nc2 {[%emt 0:00:00]} Kd5 {[%emt 0:00:00]} 46. Na3 {[%emt 0:00:00]} Kc6 {[%emt 0:00:00]} 47. Nc2 {[%emt 0:00:00] Ne3 is the strong threat.} Kd5 {[%emt 0:00:00]} 48. Na3 {[%emt 0:00:00] Weighted Error Value: White=0.08 (flawless) /Black=0.08 (flawless)} 1/2-1/2

[Event "Mitropa Cup Open 2022"]
[Site "Corte"]
[Date "2022.05.06"]
[Round "7.5"]
[White "Koellner, Ruben Gideon"]
[Black "Pechac, Jergus"]
[Result "1/2-1/2"]
[ECO "D02"]
[WhiteElo "2440"]
[BlackElo "2597"]
[Annotator "TA"]
[PlyCount "56"]
[EventDate "2022.04.30"]
[EventType "team-tourn"]
[EventCountry "FRA"]
[SourceTitle "playchess.com"]
[Source "ChessBase"]
[SourceQuality "1"]
[WhiteTeam "Germany"]
[BlackTeam "Slovakia"]
[WhiteTeamCountry "GER"]
[BlackTeamCountry "SVK"]
[TimeControl "40/5400+30:1800+30"]

{[%evp 9,56,0,32,34,24,29,29,21,25,22,30,0,0,0,0,0,-7,-30,16,35,29,7,19,0,0,0,0,0,0,0,0,0,0,0,0,0,0,0,0,0,0,0,0,0,0,0,0,0,0]} 1. d4 {[%emt 0:00:05]} d5 {[%emt 0:00:08]} 2. Nf3 {[%emt 0:00:09]} Nf6 {[%emt 0:00:14]} 3. Bf4 {[%emt 0:00:06]} c5 {[%emt 0:00:06]} 4. e3 {[%emt 0:00:04]} Nc6 {[%emt 0:00:07]} 5. Nbd2 {[%emt 0:00:05]} Nh5 {[%emt 0:00:16]} 6. dxc5 {[%emt 0:04:09] D02: 1 d4 d5 2 Nf3 sidelines, including 2...Nf6 3 g3 and 2...Nf6 3 Bf4.} Nxf4 {[%emt 0:00:09]} 7. exf4 {[%emt 0:00:09] [#]} a5 $146 {[%emt 0:00:11]} ({Predecessor:} 7... g6 8. c3 Bg7 9. Bb5 O-O 10. O-O d4 11. Bxc6 dxc3 12. bxc3 bxc6 13. Ne5 Bxe5 14. fxe5 {0-1 (43) Maghsoodloo,P (2701)-Dubov,D (2711) Chess.com INT 2022}) 8. a4 {[%emt 0:04:06] White has an edge.} g6 {[%emt 0:00:05]} 9. Bb5 {[%emt 0:02:10]} Bg7 {[%emt 0:00:07]} 10. Ne5 {[%emt 0:11:39]} Qc7 {[%emt 0:00:11]} 11. Ndf3 {[%emt 0:12:19]} f6 {[%emt 0:00:06]} 12. Nd3 {[%emt 0:02:28]} ({Much worse is} 12. Qxd5 fxe5 13. Nxe5 Bxe5 14. Qxe5 Qxe5+ 15. fxe5 O-O 16. Bxc6 bxc6 $17) 12... O-O {[%emt 0:00:06]} 13. c4 {[%emt 0:04:59]} d4 {[%emt 0:00:16]} (13... dxc4 {should be considered.} 14. Bxc4+ Kh8) 14. O-O {[%emt 0:01:04]} e5 {[%emt 0:01:13] aiming for ...e4.} 15. Re1 {[%emt 0:03:42] Black should prevent Bxc6.} Nb4 {[%emt 0:13:33] The position is equal.} 16. fxe5 {[%emt 0:09:38] Black must now prevent Nxb4.} Nxd3 {[%emt 0:01:07][%mdl 64] [#] Remove Defender} 17. Qxd3 {[%emt 0:00:10] Strongly threatening e6.} fxe5 {[%emt 0:00:04]} 18. Qe4 {[%emt 0:00:20]} Bf5 $1 {[%emt 0:00:53]} 19. Qd5+ {[%emt 0:02:03]} Kh8 {[%emt 0:00:07]} 20. Qd6 {[%emt 0:00:58]} ({But not} 20. Nxe5 $2 Rad8 21. Bd7 Bxe5 22. Qxe5+ Qxe5 23. Rxe5 Rxd7 $19) 20... Rac8 {[%emt 0:06:01]} 21. Nxe5 {[%emt 0:09:38]} Qxc5 {[%emt 0:00:07]} 22. Qxc5 {[%emt 0:05:14]} Rxc5 {[%emt 0:00:02]} 23. Nd7 $36 {[%emt 0:05:13][%mdl 2048] White has the initiative.} Bxd7 {[%emt 0:01:06]} 24. Bxd7 {[%emt 0:00:06]} Rxc4 {[%emt 0:00:08]} 25. Bb5 {[%emt 0:00:48]} Rb4 {[%emt 0:02:58]} 26. Re2 {[%emt 0:00:33]} d3 {[%emt 0:01:43]} 27. Bxd3 {[%emt 0:01:34]} Bxb2 {[%emt 0:00:03]} 28. Rf1 {[%emt 0:01:38]} Bd4 {[%emt 0:01:38] A balanced but interesting game.  Weighted Error Value: White=0.05 (flawless) /Black=0.04 (flawless)} 1/2-1/2